[Event "Early-Titled-Tuesday-Blitz-April-02-2024"]
[Site "Chess.com"]
[Date "2024.04.02"]
[Round "7"]
[White "JaackCamel"]
[Black "BashirliSaadat"]
[Result "1-0"]
[WhiteElo "2198"]
[BlackElo "2346"]
[TimeControl "180+1"]
[EndTime "9:18:00 PDT"]
[Termination "JaackCamel won by resignation"]

1. d4 {[%clk 0:02:59.7]} 1... Nf6 {[%clk 0:02:57.8]} 2. c4 {[%clk 0:02:58.1]}
2... g6 {[%clk 0:02:58.3]} 3. Nc3 {[%clk 0:02:57]} 3... Bg7 {[%clk 0:02:58.8]}
4. e4 {[%clk 0:02:56.4]} 4... d6 {[%clk 0:02:59.3]} 5. Nf3 {[%clk 0:02:55.4]}
5... O-O {[%clk 0:02:59.8]} 6. Be2 {[%clk 0:02:54.7]} 6... c5 {[%clk 0:03:00.3]}
7. d5 {[%clk 0:02:52.2]} 7... Nbd7 {[%clk 0:03:00.8]} 8. O-O {[%clk 0:02:50.9]}
8... a6 {[%clk 0:03:00.8]} 9. h3 {[%clk 0:02:49]} 9... Rb8 {[%clk 0:03:00.3]}
10. Re1 {[%clk 0:02:45.5]} 10... Qa5 {[%clk 0:03:00.7]} 11. Bd2 {[%clk
0:02:43.2]} 11... Qc7 {[%clk 0:02:59.2]} 12. a4 {[%clk 0:02:31.6]} 12... b6
{[%clk 0:02:57.8]} 13. Qc2 {[%clk 0:02:27]} 13... Nh5 {[%clk 0:02:46.6]} 14. g4
{[%clk 0:02:01]} 14... Nhf6 {[%clk 0:02:45.9]} 15. Bf4 {[%clk 0:02:00.6]} 15...
Bb7 {[%clk 0:02:42.9]} 16. Bg3 {[%clk 0:01:57.6]} 16... Rfe8 {[%clk 0:02:40.2]}
17. Kg2 {[%clk 0:01:51.8]} 17... Ne5 {[%clk 0:02:37.8]} 18. Nxe5 {[%clk
0:01:48.9]} 18... dxe5 {[%clk 0:02:38.3]} 19. Rad1 {[%clk 0:01:44.4]} 19... Rbd8
{[%clk 0:02:37.3]} 20. b3 {[%clk 0:01:38.6]} 20... e6 {[%clk 0:02:33.7]} 21. Bh4
{[%clk 0:01:33.9]} 21... Rd6 {[%clk 0:02:26.7]} 22. Bg3 {[%clk 0:01:31.8]} 22...
Rd7 {[%clk 0:02:24.9]} 23. Bf3 {[%clk 0:01:30]} 23... exd5 {[%clk 0:02:24.2]}
24. cxd5 {[%clk 0:01:24.4]} 24... Qd6 {[%clk 0:02:07.8]} 25. Rc1 {[%clk
0:01:17.8]} 25... Bh6 {[%clk 0:02:05.3]} 26. Rb1 {[%clk 0:01:16.8]} 26... Rde7
{[%clk 0:01:50]} 27. Ne2 {[%clk 0:01:14.4]} 27... Nd7 {[%clk 0:01:44.9]} 28. Bh4
{[%clk 0:01:11]} 28... g5 {[%clk 0:01:43.2]} 29. Bg3 {[%clk 0:01:09.3]} 29... b5
{[%clk 0:01:40.7]} 30. Nc3 {[%clk 0:01:01.2]} 30... b4 {[%clk 0:01:32.3]} 31.
Nd1 {[%clk 0:01:01]} 31... Nb6 {[%clk 0:01:30.6]} 32. a5 {[%clk 0:00:58.4]}
32... Nd7 {[%clk 0:01:28.9]} 33. Ne3 {[%clk 0:00:57.9]} 33... Bg7 {[%clk
0:01:01.7]} 34. Nf5 {[%clk 0:00:55.6]} 34... Qb8 {[%clk 0:01:02.2]} 35. Be2
{[%clk 0:00:45.5]} 35... Qd8 {[%clk 0:00:50.4]} 36. Ra1 {[%clk 0:00:44.8]} 36...
Nb8 {[%clk 0:00:46]} 37. Bc4 {[%clk 0:00:36.7]} 37... Rd7 {[%clk 0:00:42.8]} 38.
Qe2 {[%clk 0:00:31.6]} 38... Kf8 {[%clk 0:00:38.4]} 39. Red1 {[%clk 0:00:27.7]}
39... h6 {[%clk 0:00:31.6]} 40. f3 {[%clk 0:00:27.2]} 40... Bc8 {[%clk
0:00:28.9]} 41. Rh1 {[%clk 0:00:24.5]} 41... Qc7 {[%clk 0:00:27.6]} 42. h4
{[%clk 0:00:22.5]} 42... f6 {[%clk 0:00:27]} 43. hxg5 {[%clk 0:00:21.1]} 43...
fxg5 {[%clk 0:00:27.4]} 44. Rh5 {[%clk 0:00:17.2]} 44... Kf7 {[%clk 0:00:25.2]}
45. d6+ {[%clk 0:00:17.1]} 45... Kg6 {[%clk 0:00:20.8]} 46. dxc7 {[%clk
0:00:16.9]} 46... Rxc7 {[%clk 0:00:21.7]} 47. Rd1 {[%clk 0:00:15.1]} 47... Rc6
{[%clk 0:00:18.1]} 48. Nxg7 {[%clk 0:00:14.8]} 48... Kxg7 {[%clk 0:00:17.7]} 49.
Bd5 {[%clk 0:00:14.9]} 49... Rd6 {[%clk 0:00:17.5]} 50. Rdh1 {[%clk 0:00:14.7]}
50... Nd7 {[%clk 0:00:16.9]} 51. Qc4 {[%clk 0:00:14.7]} 51... Nf6 {[%clk
0:00:14.2]} 52. Rxh6 {[%clk 0:00:14]} 52... Nxg4 {[%clk 0:00:13.7]} 53. Rh7+
{[%clk 0:00:13.9]} 53... Kf8 {[%clk 0:00:13.8]} 54. fxg4 {[%clk 0:00:14.1]}
54... Bxg4 {[%clk 0:00:11.5]} 55. Rf1+ {[%clk 0:00:14.4]} 1-0

[Event "Early-Titled-Tuesday-Blitz-April-02-2024"]
[Site "Chess.com"]
[Date "2024.04.02"]
[Round "7"]
[White "flawian2008"]
[Black "Revan_2002"]
[Result "0-1"]
[WhiteElo "2498"]
[BlackElo "2724"]
[TimeControl "180+1"]
[EndTime "9:18:04 PDT"]
[Termination "Revan_2002 won by resignation"]

1. d4 {[%clk 0:03:00.9]} 1... g6 {[%clk 0:02:56.6]} 2. e4 {[%clk 0:03:00.4]}
2... Bg7 {[%clk 0:02:57]} 3. Nc3 {[%clk 0:03:01]} 3... d6 {[%clk 0:02:57]} 4.
Bg5 {[%clk 0:03:00.5]} 4... c6 {[%clk 0:02:56.7]} 5. Qd2 {[%clk 0:03:00.2]} 5...
Nd7 {[%clk 0:02:57]} 6. O-O-O {[%clk 0:03:00]} 6... b5 {[%clk 0:02:57.5]} 7. a3
{[%clk 0:02:59.3]} 7... Qa5 {[%clk 0:02:55.3]} 8. Nf3 {[%clk 0:02:56.3]} 8... h6
{[%clk 0:02:55.3]} 9. Be3 {[%clk 0:02:54.4]} 9... Nb6 {[%clk 0:02:55.2]} 10. Kb1
{[%clk 0:02:51.4]} 10... Rb8 {[%clk 0:02:43.3]} 11. h4 {[%clk 0:02:47.2]} 11...
Be6 {[%clk 0:02:42.4]} 12. e5 {[%clk 0:02:14.3]} 12... b4 {[%clk 0:02:34.9]} 13.
axb4 {[%clk 0:02:14.4]} 13... Qxb4 {[%clk 0:02:33.1]} 14. Ne4 {[%clk 0:02:14.6]}
14... Qxd2 {[%clk 0:02:30.6]} 15. Bxd2 {[%clk 0:02:12.7]} 15... Na4 {[%clk
0:02:15.9]} 16. b3 {[%clk 0:02:00.8]} 16... Bf5 {[%clk 0:02:14.3]} 17. Bd3
{[%clk 0:01:57.1]} 17... d5 {[%clk 0:02:14.2]} 18. Nc5 {[%clk 0:01:45.3]} 18...
Nxc5 {[%clk 0:02:12.4]} 19. Bxf5 {[%clk 0:01:45.7]} 19... Nxb3 {[%clk
0:02:06.7]} 20. cxb3 {[%clk 0:01:45.9]} 20... gxf5 {[%clk 0:02:06.4]} 21. Kc2
{[%clk 0:01:46.3]} 21... e6 {[%clk 0:01:58.7]} 22. Ra1 {[%clk 0:01:46.4]} 22...
Rb7 {[%clk 0:01:59.2]} 23. Ne1 {[%clk 0:01:46.9]} 23... Ne7 {[%clk 0:01:34.6]}
24. Nd3 {[%clk 0:01:46.8]} 24... Nc8 {[%clk 0:01:34.9]} 25. Nc5 {[%clk
0:01:45.6]} 25... Rb6 {[%clk 0:01:33.5]} 26. Rh3 {[%clk 0:01:36]} 26... Bf8
{[%clk 0:01:32.7]} 27. b4 {[%clk 0:01:30.2]} 27... Rg8 {[%clk 0:01:27.7]} 28.
Rg3 {[%clk 0:01:25.6]} 28... Rxg3 {[%clk 0:00:57]} 29. fxg3 {[%clk 0:01:26.5]}
29... h5 {[%clk 0:00:56.3]} 30. Nd3 {[%clk 0:01:20.1]} 30... Be7 {[%clk
0:00:41.8]} 31. Kb3 {[%clk 0:01:09.2]} 31... f6 {[%clk 0:00:42]} 32. Bf4 {[%clk
0:01:04.5]} 32... Kf7 {[%clk 0:00:40.3]} 33. exf6 {[%clk 0:01:00]} 33... Bxf6
{[%clk 0:00:41.2]} 34. Be5 {[%clk 0:01:00.8]} 34... Be7 {[%clk 0:00:33]} 35. Ra4
{[%clk 0:00:58.3]} 35... Rb7 {[%clk 0:00:32.4]} 36. Ra6 {[%clk 0:00:47.5]} 36...
Nb6 {[%clk 0:00:31.2]} 37. Kc3 {[%clk 0:00:44.4]} 37... Nc4 {[%clk 0:00:28.2]}
38. Bf4 {[%clk 0:00:44.5]} 38... Bf6 {[%clk 0:00:22.1]} 39. Nc5 {[%clk
0:00:41.1]} 39... Re7 {[%clk 0:00:17.4]} 40. Rxc6 {[%clk 0:00:41]} 40... a5
{[%clk 0:00:12]} 41. b5 {[%clk 0:00:38.3]} 41... e5 {[%clk 0:00:07.8]} 42. Rxf6+
{[%clk 0:00:25.5]} 42... Kxf6 {[%clk 0:00:08.7]} 43. Bg5+ {[%clk 0:00:26.4]}
43... Kf7 {[%clk 0:00:08.9]} 44. Bxe7 {[%clk 0:00:27.1]} 44... Kxe7 {[%clk
0:00:09.8]} 45. dxe5 {[%clk 0:00:27.2]} 45... Nxe5 {[%clk 0:00:10.5]} 46. Kd4
{[%clk 0:00:27.2]} 46... Nd7 {[%clk 0:00:06.9]} 47. Na4 {[%clk 0:00:21]} 47...
Kd6 {[%clk 0:00:06.6]} 48. b6 {[%clk 0:00:16.2]} 48... Nb8 {[%clk 0:00:03.7]}
49. Nc5 {[%clk 0:00:14.7]} 49... Nc6+ {[%clk 0:00:02.9]} 50. Kc3 {[%clk
0:00:13.2]} 50... Kxc5 {[%clk 0:00:03.8]} 0-1

[Event "Early-Titled-Tuesday-Blitz-April-02-2024"]
[Site "Chess.com"]
[Date "2024.04.02"]
[Round "7"]
[White "ricaurtelopezj1955"]
[Black "Knightmare1014"]
[Result "1-0"]
[WhiteElo "2169"]
[BlackElo "2311"]
[TimeControl "180+1"]
[EndTime "9:18:04 PDT"]
[Termination "ricaurtelopezj1955 won on time"]

1. e4 {[%clk 0:02:51.6]} 1... c5 {[%clk 0:02:59.8]} 2. d4 {[%clk 0:02:50.3]}
2... cxd4 {[%clk 0:02:59.6]} 3. c3 {[%clk 0:02:50.1]} 3... dxc3 {[%clk
0:02:59.9]} 4. Nxc3 {[%clk 0:02:49]} 4... e6 {[%clk 0:03:00.4]} 5. Nf3 {[%clk
0:02:48]} 5... a6 {[%clk 0:03:00.3]} 6. Bc4 {[%clk 0:02:46]} 6... b5 {[%clk
0:03:00.5]} 7. Bb3 {[%clk 0:02:45.3]} 7... Bb7 {[%clk 0:03:00.8]} 8. O-O {[%clk
0:02:42.8]} 8... Ne7 {[%clk 0:03:00.9]} 9. Qe2 {[%clk 0:02:40.8]} 9... Ng6
{[%clk 0:02:59.8]} 10. Rd1 {[%clk 0:02:35.5]} 10... Be7 {[%clk 0:02:58.8]} 11.
g3 {[%clk 0:02:21.9]} 11... O-O {[%clk 0:02:55.4]} 12. h4 {[%clk 0:02:20.8]}
12... Bb4 {[%clk 0:02:46.4]} 13. h5 {[%clk 0:02:17.3]} 13... Ne7 {[%clk
0:02:46.5]} 14. h6 {[%clk 0:02:15.4]} 14... Bxc3 {[%clk 0:02:37.5]} 15. bxc3
{[%clk 0:02:12.8]} 15... Ng6 {[%clk 0:02:32.6]} 16. Ba3 {[%clk 0:02:05.9]} 16...
Re8 {[%clk 0:02:30.1]} 17. Rd6 {[%clk 0:01:59]} 17... Qf6 {[%clk 0:02:09]} 18.
Rad1 {[%clk 0:01:52.7]} 18... Ne5 {[%clk 0:01:40.8]} 19. Nxe5 {[%clk 0:01:49.4]}
19... Qxe5 {[%clk 0:01:40.8]} 20. Bc2 {[%clk 0:01:28]} 20... f5 {[%clk
0:01:30.6]} 21. f4 {[%clk 0:01:21.6]} 21... Qxc3 {[%clk 0:01:24]} 22. exf5
{[%clk 0:01:04.2]} 22... Bf3 {[%clk 0:00:47]} 23. Qd3 {[%clk 0:00:55]} 23...
Qxd3 {[%clk 0:00:38.8]} 24. R1xd3 {[%clk 0:00:54.2]} 24... Be4 {[%clk
0:00:38.7]} 25. fxe6 {[%clk 0:00:53.4]} 25... Bxd3 {[%clk 0:00:28.5]} 26. Rxd3
{[%clk 0:00:46.7]} 26... dxe6 {[%clk 0:00:21.4]} 27. Bb3 {[%clk 0:00:42.6]}
27... Nc6 {[%clk 0:00:20.1]} 28. Rd6 {[%clk 0:00:39.9]} 28... Nd8 {[%clk
0:00:20.2]} 29. Rd7 {[%clk 0:00:38.3]} 29... gxh6 {[%clk 0:00:20.1]} 30. Bb2
{[%clk 0:00:37.8]} 30... Nf7 {[%clk 0:00:19.8]} 31. f5 {[%clk 0:00:35.5]} 31...
Rad8 {[%clk 0:00:18.4]} 32. fxe6 {[%clk 0:00:33.5]} 32... Rxd7 {[%clk
0:00:17.4]} 33. exd7 {[%clk 0:00:29.8]} 33... Rd8 {[%clk 0:00:17.5]} 34. Be6
{[%clk 0:00:28.1]} 34... Kf8 {[%clk 0:00:16.6]} 35. Bf6 {[%clk 0:00:25.3]} 35...
Rb8 {[%clk 0:00:16.2]} 36. Bxf7 {[%clk 0:00:24]} 36... Kxf7 {[%clk 0:00:14.5]}
37. d8=Q {[%clk 0:00:23.7]} 37... Rxd8 {[%clk 0:00:14.8]} 38. Bxd8 {[%clk
0:00:24]} 38... Kg6 {[%clk 0:00:14.8]} 39. Kf2 {[%clk 0:00:22]} 39... Kf5 {[%clk
0:00:15.1]} 40. Kf3 {[%clk 0:00:20.8]} 40... Ke5 {[%clk 0:00:15.1]} 41. Ba5
{[%clk 0:00:20.2]} 41... Kd4 {[%clk 0:00:14.4]} 42. Kg4 {[%clk 0:00:19.4]} 42...
Ke3 {[%clk 0:00:12.6]} 43. Kh5 {[%clk 0:00:18.5]} 43... Kf3 {[%clk 0:00:09]} 44.
g4 {[%clk 0:00:18.1]} 44... Kg3 {[%clk 0:00:06.7]} 45. a3 {[%clk 0:00:15.8]}
45... Kf3 {[%clk 0:00:05.4]} 46. Bb6 {[%clk 0:00:15.7]} 46... Kg3 {[%clk
0:00:04.9]} 47. Bc7+ {[%clk 0:00:14]} 47... Kh3 {[%clk 0:00:01.1]} 48. Bd6
{[%clk 0:00:12.3]} 48... Kg2 {[%clk 0:00:01.1]} 49. Kxh6 {[%clk 0:00:11.3]} 1-0

[Event "Early-Titled-Tuesday-Blitz-April-02-2024"]
[Site "Chess.com"]
[Date "2024.04.02"]
[Round "7"]
[White "Matols"]
[Black "JoshuaGK27"]
[Result "1-0"]
[WhiteElo "2376"]
[BlackElo "2519"]
[TimeControl "180+1"]
[EndTime "9:18:05 PDT"]
[Termination "Matols won on time"]

1. d4 {[%clk 0:02:59.4]} 1... Nf6 {[%clk 0:02:59.8]} 2. c4 {[%clk 0:02:58.9]}
2... e6 {[%clk 0:03:00.2]} 3. g3 {[%clk 0:02:58.6]} 3... d5 {[%clk 0:02:57.9]}
4. Nf3 {[%clk 0:02:58.1]} 4... dxc4 {[%clk 0:02:56.4]} 5. Bg2 {[%clk 0:02:57.8]}
5... c5 {[%clk 0:02:57.1]} 6. O-O {[%clk 0:02:54.5]} 6... Nc6 {[%clk 0:02:57.4]}
7. Qa4 {[%clk 0:02:52.6]} 7... Bd7 {[%clk 0:02:57]} 8. Qxc4 {[%clk 0:02:51.9]}
8... b5 {[%clk 0:02:57.3]} 9. Qd3 {[%clk 0:02:51.8]} 9... c4 {[%clk 0:02:56.9]}
10. Qd1 {[%clk 0:02:51.7]} 10... Rc8 {[%clk 0:02:57.4]} 11. Re1 {[%clk
0:02:43.4]} 11... Be7 {[%clk 0:02:56.7]} 12. e4 {[%clk 0:02:42.4]} 12... O-O
{[%clk 0:02:57.2]} 13. a3 {[%clk 0:02:33.9]} 13... Na5 {[%clk 0:02:47.4]} 14.
Nbd2 {[%clk 0:02:27.8]} 14... Bc6 {[%clk 0:02:41]} 15. Qe2 {[%clk 0:02:14.6]}
15... Qb6 {[%clk 0:02:33.3]} 16. e5 {[%clk 0:01:58.4]} 16... Nd5 {[%clk
0:02:30.6]} 17. h4 {[%clk 0:01:52.8]} 17... Rfd8 {[%clk 0:02:22]} 18. h5 {[%clk
0:01:47.7]} 18... h6 {[%clk 0:01:22.3]} 19. Qe4 {[%clk 0:01:29.6]} 19... Nb4
{[%clk 0:00:59.8]} 20. axb4 {[%clk 0:01:22.8]} 20... Bxe4 {[%clk 0:00:58.9]} 21.
bxa5 {[%clk 0:01:22.5]} 21... Qc7 {[%clk 0:00:55]} 22. Nxe4 {[%clk 0:01:22.1]}
22... b4 {[%clk 0:00:54.1]} 23. Bd2 {[%clk 0:01:18.7]} 23... Qd7 {[%clk
0:00:41.7]} 24. Rec1 {[%clk 0:01:14.8]} 24... Qb5 {[%clk 0:00:42.1]} 25. Be3
{[%clk 0:01:09.3]} 25... c3 {[%clk 0:00:28.5]} 26. bxc3 {[%clk 0:01:08.3]} 26...
b3 {[%clk 0:00:29]} 27. Rcb1 {[%clk 0:00:59.8]} 27... b2 {[%clk 0:00:27.5]} 28.
Ra2 {[%clk 0:00:58.6]} 28... Qd3 {[%clk 0:00:28.1]} 29. Ned2 {[%clk 0:00:57.6]}
29... Rxc3 {[%clk 0:00:19.6]} 30. Raxb2 {[%clk 0:00:56.9]} 30... Qa6 {[%clk
0:00:10]} 31. Nb3 {[%clk 0:00:48.6]} 31... Qc8 {[%clk 0:00:06.2]} 32. Nc5 {[%clk
0:00:46.8]} 32... Rxe3 {[%clk 0:00:04.7]} 33. fxe3 {[%clk 0:00:45.4]} 33... Bxc5
{[%clk 0:00:05.3]} 34. dxc5 {[%clk 0:00:45.2]} 34... Qxc5 {[%clk 0:00:06.2]} 35.
Rb8 {[%clk 0:00:22]} 35... Qxe3+ {[%clk 0:00:03.1]} 36. Kh2 {[%clk 0:00:21.7]}
36... Rxb8 {[%clk 0:00:03.8]} 37. Rxb8+ {[%clk 0:00:21]} 37... Kh7 {[%clk
0:00:04.4]} 38. a6 {[%clk 0:00:20.6]} 38... Qa3 {[%clk 0:00:03.5]} 39. Rb7
{[%clk 0:00:18.2]} 39... Qxa6 {[%clk 0:00:04]} 40. Rxf7 {[%clk 0:00:18.6]} 40...
Qa2 {[%clk 0:00:02.6]} 41. Nh4 {[%clk 0:00:17.6]} 41... a5 {[%clk 0:00:01.6]}
42. Ng6 {[%clk 0:00:17.4]} 42... Qe2 {[%clk 0:00:02.1]} 43. Nf4 {[%clk
0:00:13.2]} 43... Qxe5 {[%clk 0:00:02.6]} 44. Ra7 {[%clk 0:00:12.9]} 44... Qg5
{[%clk 0:00:01.6]} 45. Be4+ {[%clk 0:00:11.5]} 45... Kg8 {[%clk 0:00:01.3]} 46.
Bg6 {[%clk 0:00:10.4]} 46... Kf8 {[%clk 0:00:01.6]} 47. Nxe6+ {[%clk 0:00:08.4]}
1-0

[Event "Early-Titled-Tuesday-Blitz-April-02-2024"]
[Site "Chess.com"]
[Date "2024.04.02"]
[Round "7"]
[White "akanga001"]
[Black "esrosenberg"]
[Result "1-0"]
[WhiteElo "2145"]
[BlackElo "2466"]
[TimeControl "180+1"]
[EndTime "9:18:06 PDT"]
[Termination "akanga001 won on time"]

1. d4 {[%clk 0:03:00.9]} 1... d5 {[%clk 0:02:59.1]} 2. c4 {[%clk 0:03:00.5]}
2... e6 {[%clk 0:02:58.6]} 3. Nc3 {[%clk 0:02:59]} 3... c5 {[%clk 0:02:58]} 4.
cxd5 {[%clk 0:02:58.9]} 4... cxd4 {[%clk 0:02:57.8]} 5. Qxd4 {[%clk 0:02:56.7]}
5... Nc6 {[%clk 0:02:56.8]} 6. Qd2 {[%clk 0:02:56.1]} 6... exd5 {[%clk
0:02:56.7]} 7. Qxd5 {[%clk 0:02:55.3]} 7... Qc7 {[%clk 0:02:56.3]} 8. e4 {[%clk
0:02:52.5]} 8... Nf6 {[%clk 0:02:50.7]} 9. Qd1 {[%clk 0:02:52.1]} 9... Bb4
{[%clk 0:02:33]} 10. Bg5 {[%clk 0:02:48.7]} 10... Bxc3+ {[%clk 0:02:15.6]} 11.
bxc3 {[%clk 0:02:47.8]} 11... Nxe4 {[%clk 0:02:16.2]} 12. Qd5 {[%clk 0:02:34.1]}
12... Nxc3 {[%clk 0:01:53]} 13. Qc4 {[%clk 0:02:31.8]} 13... Qe5+ {[%clk
0:01:44.5]} 14. Be3 {[%clk 0:02:29.9]} 14... Nd5 {[%clk 0:01:28.8]} 15. Rd1
{[%clk 0:02:04.4]} 15... Nxe3 {[%clk 0:01:25.3]} 16. fxe3 {[%clk 0:02:02.6]}
16... Qxe3+ {[%clk 0:01:22.3]} 17. Be2 {[%clk 0:02:01.5]} 17... O-O {[%clk
0:01:18.5]} 18. Rd3 {[%clk 0:02:00.6]} 18... Qe5 {[%clk 0:00:44.5]} 19. Nf3
{[%clk 0:01:58.8]} 19... Qa1+ {[%clk 0:00:44.3]} 20. Rd1 {[%clk 0:01:57.3]}
20... Qf6 {[%clk 0:00:42.4]} 21. O-O {[%clk 0:01:55.9]} 21... Be6 {[%clk
0:00:42.7]} 22. Qb5 {[%clk 0:01:53.3]} 22... Rab8 {[%clk 0:00:39.2]} 23. Ng5
{[%clk 0:01:32.9]} 23... Qe5 {[%clk 0:00:32.8]} 24. Nxe6 {[%clk 0:01:28.1]}
24... Qxe6 {[%clk 0:00:29.7]} 25. Bc4 {[%clk 0:01:23.5]} 25... Qe3+ {[%clk
0:00:28.7]} 26. Kh1 {[%clk 0:01:22.8]} 26... a6 {[%clk 0:00:24.1]} 27. Qb3
{[%clk 0:01:16.7]} 27... Qxb3 {[%clk 0:00:21.3]} 28. axb3 {[%clk 0:01:14.4]}
28... Rbd8 {[%clk 0:00:20.6]} 29. Rc1 {[%clk 0:01:12.8]} 29... Ne5 {[%clk
0:00:18.4]} 30. Be2 {[%clk 0:01:10]} 30... Rc8 {[%clk 0:00:17.9]} 31. Rce1
{[%clk 0:01:08.5]} 31... Ng6 {[%clk 0:00:17.4]} 32. Bc4 {[%clk 0:01:08.2]} 32...
b5 {[%clk 0:00:16.8]} 33. Bd5 {[%clk 0:01:08.5]} 33... Rcd8 {[%clk 0:00:16]} 34.
Bb7 {[%clk 0:01:07.8]} 34... Rd6 {[%clk 0:00:15.2]} 35. Ra1 {[%clk 0:01:05]}
35... h5 {[%clk 0:00:14.2]} 36. Bxa6 {[%clk 0:01:03]} 36... b4 {[%clk
0:00:13.7]} 37. Bc4 {[%clk 0:01:02.7]} 37... Ne5 {[%clk 0:00:12.9]} 38. Be2
{[%clk 0:01:00.3]} 38... g6 {[%clk 0:00:11.5]} 39. Ra5 {[%clk 0:00:54.7]} 39...
Nc6 {[%clk 0:00:08.2]} 40. Ra6 {[%clk 0:00:53.5]} 40... Rfd8 {[%clk 0:00:08.4]}
41. Bc4 {[%clk 0:00:50.3]} 41... Ne5 {[%clk 0:00:08.7]} 42. Rxd6 {[%clk
0:00:42.1]} 42... Rxd6 {[%clk 0:00:09.6]} 43. Bb5 {[%clk 0:00:42.4]} 43... Rd2
{[%clk 0:00:08.7]} 44. h3 {[%clk 0:00:41.2]} 44... Rb2 {[%clk 0:00:08.7]} 45.
Re1 {[%clk 0:00:35.9]} 45... f6 {[%clk 0:00:07.3]} 46. Ba4 {[%clk 0:00:22.8]}
46... Kf7 {[%clk 0:00:06.5]} 47. Re4 {[%clk 0:00:22.7]} 47... Nd3 {[%clk
0:00:04.8]} 48. Rd4 {[%clk 0:00:20.1]} 48... Rd2 {[%clk 0:00:03.7]} 49. Rd7+
{[%clk 0:00:17.4]} 49... Ke6 {[%clk 0:00:03.2]} 50. Kh2 {[%clk 0:00:17.8]} 50...
Rd1 {[%clk 0:00:01.3]} 51. Rd4 {[%clk 0:00:16.9]} 1-0

[Event "Early-Titled-Tuesday-Blitz-April-02-2024"]
[Site "Chess.com"]
[Date "2024.04.02"]
[Round "7"]
[White "Vesper2018"]
[Black "sorch29"]
[Result "1/2-1/2"]
[WhiteElo "2573"]
[BlackElo "2431"]
[TimeControl "180+1"]
[EndTime "9:18:07 PDT"]
[Termination "Game drawn by repetition"]

1. e4 {[%clk 0:03:00.9]} 1... c5 {[%clk 0:02:59.7]} 2. Nc3 {[%clk 0:03:00.4]}
2... Nc6 {[%clk 0:02:59.1]} 3. Bb5 {[%clk 0:02:59]} 3... Nd4 {[%clk 0:02:59.1]}
4. Bc4 {[%clk 0:02:59]} 4... a6 {[%clk 0:02:49.5]} 5. a4 {[%clk 0:02:57.9]} 5...
e6 {[%clk 0:02:41.2]} 6. Nge2 {[%clk 0:02:57.6]} 6... Nf6 {[%clk 0:02:37.1]} 7.
O-O {[%clk 0:02:54.3]} 7... d5 {[%clk 0:02:31.5]} 8. exd5 {[%clk 0:02:54.1]}
8... exd5 {[%clk 0:02:31.9]} 9. Ba2 {[%clk 0:02:54.2]} 9... Ne6 {[%clk
0:01:56.1]} 10. d4 {[%clk 0:02:35.6]} 10... c4 {[%clk 0:01:49.2]} 11. b3 {[%clk
0:02:34.1]} 11... cxb3 {[%clk 0:01:33.1]} 12. Bxb3 {[%clk 0:02:33.9]} 12... Be7
{[%clk 0:01:31.3]} 13. f4 {[%clk 0:02:23.8]} 13... O-O {[%clk 0:01:31]} 14. f5
{[%clk 0:02:24]} 14... Nc7 {[%clk 0:01:28.2]} 15. Bf4 {[%clk 0:02:20.7]} 15...
Bd6 {[%clk 0:01:09.8]} 16. Qd2 {[%clk 0:02:12.6]} 16... Re8 {[%clk 0:00:45]} 17.
Rae1 {[%clk 0:02:04.1]} 17... b5 {[%clk 0:00:34.3]} 18. axb5 {[%clk 0:01:54.5]}
18... axb5 {[%clk 0:00:34.5]} 19. Ng3 {[%clk 0:01:54.4]} 19... Rxe1 {[%clk
0:00:30.2]} 20. Rxe1 {[%clk 0:01:54.4]} 20... b4 {[%clk 0:00:25.4]} 21. Na4
{[%clk 0:01:53.9]} 21... Bxf4 {[%clk 0:00:20.2]} 22. Qxf4 {[%clk 0:01:53.7]}
22... Na6 {[%clk 0:00:14.1]} 23. Nc5 {[%clk 0:01:30.9]} 23... Nxc5 {[%clk
0:00:11.9]} 24. dxc5 {[%clk 0:01:31.2]} 24... Bb7 {[%clk 0:00:09.9]} 25. Qxb4
{[%clk 0:01:30.9]} 25... Qc7 {[%clk 0:00:09.1]} 26. Qb6 {[%clk 0:01:04.9]} 26...
Rc8 {[%clk 0:00:07]} 27. Qxc7 {[%clk 0:01:02.5]} 27... Rxc7 {[%clk 0:00:07.2]}
28. Nh5 {[%clk 0:00:58.9]} 28... Rxc5 {[%clk 0:00:04.8]} 29. Nxf6+ {[%clk
0:00:58.8]} 29... gxf6 {[%clk 0:00:05.2]} 30. Re8+ {[%clk 0:00:57.8]} 30... Kg7
{[%clk 0:00:05.6]} 31. Rd8 {[%clk 0:00:51.7]} 31... Rc7 {[%clk 0:00:02.9]} 32.
Kf2 {[%clk 0:00:46.8]} 32... Kh6 {[%clk 0:00:03.5]} 33. h4 {[%clk 0:00:42.1]}
33... Kh5 {[%clk 0:00:03.2]} 34. g3 {[%clk 0:00:41.9]} 34... Kg4 {[%clk
0:00:03.7]} 35. Rh8 {[%clk 0:00:23]} 35... Kxf5 {[%clk 0:00:04.3]} 36. Rxh7
{[%clk 0:00:23.4]} 36... d4 {[%clk 0:00:05]} 37. Rxf7 {[%clk 0:00:20.6]} 37...
Rxf7 {[%clk 0:00:04.2]} 38. Bxf7 {[%clk 0:00:20.7]} 38... Be4 {[%clk 0:00:04.9]}
39. Bb3 {[%clk 0:00:18.3]} 39... Kg4 {[%clk 0:00:04.9]} 40. Be6+ {[%clk
0:00:18.3]} 40... Kh5 {[%clk 0:00:03.8]} 41. Bb3 {[%clk 0:00:16.6]} 41... Kg4
{[%clk 0:00:04.4]} 42. Ba4 {[%clk 0:00:16.4]} 42... Kh5 {[%clk 0:00:02.3]} 43.
Kg1 {[%clk 0:00:09]} 43... Kg4 {[%clk 0:00:02.8]} 44. Kh2 {[%clk 0:00:09.6]}
44... Bf5 {[%clk 0:00:02.3]} 45. Kg2 {[%clk 0:00:07.5]} 45... Be4+ {[%clk
0:00:02.5]} 46. Kh2 {[%clk 0:00:08.1]} 46... Bf5 {[%clk 0:00:03.1]} 47. Bb3
{[%clk 0:00:08.7]} 47... Kh5 {[%clk 0:00:02.3]} 48. Kg2 {[%clk 0:00:02.7]} 48...
Kg4 {[%clk 0:00:02.8]} 49. Ba4 {[%clk 0:00:03.3]} 49... Be4+ {[%clk 0:00:03.2]}
50. Kh2 {[%clk 0:00:03.1]} 1/2-1/2